[Event "*** Titled Tuesday Blitz"]
[Site "Chess.com"]
[Date "2020.12.01"]
[Round "8"]
[White "kagg1125"]
[Black "Stosk"]
[Result "1/2-1/2"]
[WhiteElo "2541"]
[BlackElo "2403"]
[TimeControl "180+1"]
[EndTime "11:27:56 PST"]
[Termination "Game drawn - insufficient material"]

1. e4 {[%clk 0:03:00.9]} 1... e5 {[%clk 0:02:39]} 2. Nf3 {[%clk 0:02:59.6]} 2...
Nf6 {[%clk 0:02:33.9]} 3. d4 {[%clk 0:02:57.2]} 3... exd4 {[%clk 0:02:29.4]} 4.
e5 {[%clk 0:02:54.2]} 4... Ne4 {[%clk 0:02:29.4]} 5. Qxd4 {[%clk 0:02:52.9]}
5... d5 {[%clk 0:02:28.4]} 6. exd6 {[%clk 0:02:52.3]} 6... Nxd6 {[%clk
0:02:28.1]} 7. Nc3 {[%clk 0:02:52.3]} 7... Nc6 {[%clk 0:02:27.9]} 8. Qf4 {[%clk
0:02:52.3]} 8... Nf5 {[%clk 0:02:28.1]} 9. Bd3 {[%clk 0:02:50.1]} 9... Bd6
{[%clk 0:02:27.9]} 10. Qe4+ {[%clk 0:02:46.3]} 10... Be6 {[%clk 0:02:16.5]} 11.
Bg5 {[%clk 0:02:39.7]} 11... Qd7 {[%clk 0:02:10.7]} 12. O-O-O {[%clk 0:02:38.3]}
12... h6 {[%clk 0:02:00.6]} 13. Bf4 {[%clk 0:02:31.7]} 13... O-O-O {[%clk
0:01:57.2]} 14. Bxd6 {[%clk 0:02:26.1]} 14... Nxd6 {[%clk 0:01:55.9]} 15. Qa4
{[%clk 0:02:22.8]} 15... Kb8 {[%clk 0:01:20.4]} 16. Rhe1 {[%clk 0:02:19.6]}
16... Rhe8 {[%clk 0:01:16.2]} 17. Kb1 {[%clk 0:02:19.2]} 17... Bf5 {[%clk
0:01:10.1]} 18. Bxf5 {[%clk 0:02:15.5]} 18... Qxf5 {[%clk 0:01:11]} 19. a3
{[%clk 0:02:08.5]} 19... Rxe1 {[%clk 0:01:01]} 20. Rxe1 {[%clk 0:02:07.3]} 20...
Qc5 {[%clk 0:01:00.2]} 21. Qh4 {[%clk 0:01:52.2]} 21... a6 {[%clk 0:00:48.4]}
22. Ne5 {[%clk 0:01:48.7]} 22... f6 {[%clk 0:00:32.2]} 23. Nxc6+ {[%clk
0:01:39.8]} 23... Qxc6 {[%clk 0:00:33.1]} 24. Qg3 {[%clk 0:01:38.5]} 24... g5
{[%clk 0:00:30.7]} 25. Re6 {[%clk 0:01:33]} 25... Re8 {[%clk 0:00:20.2]} 26.
Rxe8+ {[%clk 0:01:24.9]} 26... Qxe8 {[%clk 0:00:21.1]} 27. Qf3 {[%clk
0:01:25.1]} 27... Qe1+ {[%clk 0:00:15.4]} 28. Ka2 {[%clk 0:01:24.4]} 28... f5
{[%clk 0:00:15.5]} 29. Qe2 {[%clk 0:01:15.5]} 29... Qg1 {[%clk 0:00:12.1]} 30.
g3 {[%clk 0:01:13.2]} 30... Qxh2 {[%clk 0:00:11.9]} 31. Nd5 {[%clk 0:01:11.6]}
31... Qg2 {[%clk 0:00:10.4]} 32. c4 {[%clk 0:01:11.5]} 32... Qe4 {[%clk
0:00:08.8]} 33. Qxe4 {[%clk 0:01:09.7]} 33... Nxe4 {[%clk 0:00:08.5]} 34. Ne3
{[%clk 0:01:10.3]} 34... f4 {[%clk 0:00:07.8]} 35. gxf4 {[%clk 0:01:09.8]} 35...
gxf4 {[%clk 0:00:08.7]} 36. Nf5 {[%clk 0:01:09.4]} 36... h5 {[%clk 0:00:08]} 37.
f3 {[%clk 0:01:09.6]} 37... Nd2 {[%clk 0:00:07.2]} 38. Nh4 {[%clk 0:01:07.8]}
38... Nxc4 {[%clk 0:00:07.4]} 39. Kb3 {[%clk 0:01:08.4]} 39... Ne3 {[%clk
0:00:07.1]} 40. Kc3 {[%clk 0:01:09.3]} 40... c5 {[%clk 0:00:07.1]} 41. Kd3
{[%clk 0:01:09.3]} 41... b5 {[%clk 0:00:06.6]} 42. Ke4 {[%clk 0:01:09.6]} 42...
Nd1 {[%clk 0:00:06.6]} 43. b3 {[%clk 0:01:09.8]} 43... c4 {[%clk 0:00:04.4]} 44.
bxc4 {[%clk 0:01:06.9]} 44... bxc4 {[%clk 0:00:05.3]} 45. Ng2 {[%clk 0:01:00.8]}
45... Ne3 {[%clk 0:00:05.5]} 46. Nxf4 {[%clk 0:01:00.3]} 46... Nf1 {[%clk
0:00:05.1]} 47. Kd4 {[%clk 0:00:57.6]} 47... h4 {[%clk 0:00:04.4]} 48. Nh3
{[%clk 0:00:54.6]} 48... Kc7 {[%clk 0:00:02.9]} 49. f4 {[%clk 0:00:53.7]} 49...
Nd2 {[%clk 0:00:03]} 50. Kc3 {[%clk 0:00:53.9]} 50... Ne4+ {[%clk 0:00:03]} 51.
Kxc4 {[%clk 0:00:54]} 51... Kc6 {[%clk 0:00:03.6]} 52. Kd4 {[%clk 0:00:53.5]}
52... Nf6 {[%clk 0:00:03.4]} 53. Ke5 {[%clk 0:00:52.9]} 53... Ng4+ {[%clk
0:00:04]} 54. Ke4 {[%clk 0:00:52.9]} 54... Nf6+ {[%clk 0:00:04]} 55. Kf5 {[%clk
0:00:51.6]} 55... Nd5 {[%clk 0:00:04.3]} 56. Ke5 {[%clk 0:00:52]} 56... Ne3
{[%clk 0:00:03.7]} 57. Nf2 {[%clk 0:00:48.7]} 57... Kd7 {[%clk 0:00:03.5]} 58.
Kd4 {[%clk 0:00:47.2]} 58... Nf5+ {[%clk 0:00:03.2]} 59. Kd5 {[%clk 0:00:46.2]}
59... Ke7 {[%clk 0:00:02.9]} 60. Ke5 {[%clk 0:00:44.5]} 60... Ne3 {[%clk
0:00:02.6]} 61. f5 {[%clk 0:00:43.6]} 61... Nc4+ {[%clk 0:00:02.7]} 62. Kf4
{[%clk 0:00:42.5]} 62... Nxa3 {[%clk 0:00:03.6]} 63. Kg4 {[%clk 0:00:41.9]}
63... Nc4 {[%clk 0:00:04.1]} 64. Kxh4 {[%clk 0:00:42.2]} 64... Kf6 {[%clk
0:00:04.2]} 65. Kg4 {[%clk 0:00:42.1]} 65... Ne3+ {[%clk 0:00:04.7]} 66. Kf4
{[%clk 0:00:42]} 66... Nxf5 {[%clk 0:00:05.2]} 67. Ne4+ {[%clk 0:00:42.9]} 67...
Kg6 {[%clk 0:00:05.6]} 68. Nc5 {[%clk 0:00:42.3]} 68... a5 {[%clk 0:00:05.8]}
69. Kf3 {[%clk 0:00:42.4]} 69... Nd4+ {[%clk 0:00:05.5]} 70. Ke4 {[%clk
0:00:42.5]} 70... Nc6 {[%clk 0:00:05.3]} 71. Kd5 {[%clk 0:00:42.4]} 71... Nb4+
{[%clk 0:00:05]} 72. Kc4 {[%clk 0:00:42]} 72... Nc6 {[%clk 0:00:04.6]} 73. Kb5
{[%clk 0:00:41.9]} 73... Nd4+ {[%clk 0:00:04.7]} 74. Kxa5 {[%clk 0:00:41.7]}
1/2-1/2

[Event "*** Titled Tuesday Blitz"]
[Site "Chess.com"]
[Date "2020.12.01"]
[Round "8"]
[White "CheckThis4"]
[Black "bascheyaro"]
[Result "0-1"]
[WhiteElo "2548"]
[BlackElo "2736"]
[TimeControl "180+1"]
[EndTime "11:27:57 PST"]
[Termination "bascheyaro won on time"]

1. d4 {[%clk 0:03:00.9]} 1... d5 {[%clk 0:02:58]} 2. c4 {[%clk 0:03:00.4]} 2...
c6 {[%clk 0:02:58.4]} 3. Nc3 {[%clk 0:03:00.5]} 3... Nf6 {[%clk 0:02:58.2]} 4.
Nf3 {[%clk 0:03:00]} 4... a6 {[%clk 0:02:58.1]} 5. e3 {[%clk 0:02:58.4]} 5... g6
{[%clk 0:02:57.1]} 6. Be2 {[%clk 0:02:52.3]} 6... Bg7 {[%clk 0:02:57.1]} 7. O-O
{[%clk 0:02:52.1]} 7... O-O {[%clk 0:02:57.2]} 8. Bd2 {[%clk 0:02:46.8]} 8...
Bg4 {[%clk 0:02:56.5]} 9. b3 {[%clk 0:02:42]} 9... e6 {[%clk 0:02:52.8]} 10. Rc1
{[%clk 0:02:41]} 10... Nbd7 {[%clk 0:02:52.5]} 11. h3 {[%clk 0:02:36.9]} 11...
Bxf3 {[%clk 0:02:52.3]} 12. Bxf3 {[%clk 0:02:37.8]} 12... Re8 {[%clk 0:02:27.2]}
13. Qc2 {[%clk 0:02:28.4]} 13... dxc4 {[%clk 0:02:26.2]} 14. bxc4 {[%clk
0:02:26.2]} 14... e5 {[%clk 0:02:26.5]} 15. Rb1 {[%clk 0:02:19.9]} 15... exd4
{[%clk 0:02:19.3]} 16. exd4 {[%clk 0:02:19.3]} 16... Qc7 {[%clk 0:02:19.6]} 17.
g3 {[%clk 0:02:14.9]} 17... Nf8 {[%clk 0:02:10.3]} 18. Bf4 {[%clk 0:02:11.1]}
18... Qd7 {[%clk 0:02:10.5]} 19. d5 {[%clk 0:02:05.5]} 19... Qxh3 {[%clk
0:01:56.5]} 20. dxc6 {[%clk 0:01:46.2]} 20... bxc6 {[%clk 0:01:56.6]} 21. Ne4
{[%clk 0:01:35.3]} 21... Rxe4 {[%clk 0:01:09.7]} 22. Bxe4 {[%clk 0:01:23.5]}
22... Ng4 {[%clk 0:01:09.9]} 23. Rfe1 {[%clk 0:01:14.8]} 23... Qh2+ {[%clk
0:01:09.9]} 24. Kf1 {[%clk 0:01:14.8]} 24... Ne6 {[%clk 0:01:10.4]} 25. Be3
{[%clk 0:01:06.8]} 25... Nd4 {[%clk 0:00:56.3]} 26. Bxd4 {[%clk 0:01:02.1]}
26... Bxd4 {[%clk 0:00:57.2]} 27. Re2 {[%clk 0:00:37.4]} 27... Rd8 {[%clk
0:00:18.7]} 28. Bf3 {[%clk 0:00:28.7]} 28... Bxf2 {[%clk 0:00:16.4]} 29. Rxf2
{[%clk 0:00:25.9]} 29... Ne3+ {[%clk 0:00:16.6]} 30. Ke2 {[%clk 0:00:22.8]}
30... Qxf2+ {[%clk 0:00:16.7]} 31. Kxf2 {[%clk 0:00:23]} 31... Nxc2 {[%clk
0:00:17.6]} 32. Rb6 {[%clk 0:00:20.6]} 32... Rd2+ {[%clk 0:00:16.1]} 33. Kg1
{[%clk 0:00:20.8]} 33... Nd4 {[%clk 0:00:16.3]} 34. Bxc6 {[%clk 0:00:20.2]}
34... Nxc6 {[%clk 0:00:16.5]} 35. Rxc6 {[%clk 0:00:20.4]} 35... Rxa2 {[%clk
0:00:17.2]} 36. c5 {[%clk 0:00:20.3]} 36... Rc2 {[%clk 0:00:17.3]} 37. g4 {[%clk
0:00:19.4]} 37... h6 {[%clk 0:00:16.7]} 38. Kf1 {[%clk 0:00:18.4]} 38... Kg7
{[%clk 0:00:16.7]} 39. Ke1 {[%clk 0:00:18.9]} 39... a5 {[%clk 0:00:17]} 40. Kd1
{[%clk 0:00:19.4]} 40... Rc4 {[%clk 0:00:17.3]} 41. Kd2 {[%clk 0:00:19.9]} 41...
Rxg4 {[%clk 0:00:16.2]} 42. Kd3 {[%clk 0:00:20.3]} 42... Rg5 {[%clk 0:00:15.3]}
43. Kd4 {[%clk 0:00:17.7]} 43... h5 {[%clk 0:00:14.6]} 44. Ra6 {[%clk
0:00:17.4]} 44... a4 {[%clk 0:00:15.1]} 45. c6 {[%clk 0:00:16.2]} 45... Rg1
{[%clk 0:00:15]} 46. Ra5 {[%clk 0:00:14.4]} 46... Rd1+ {[%clk 0:00:14.5]} 47.
Ke5 {[%clk 0:00:12.4]} 47... Rc1 {[%clk 0:00:14.8]} 48. Kd6 {[%clk 0:00:12.5]}
48... h4 {[%clk 0:00:13.4]} 49. Rc5 {[%clk 0:00:06.8]} 49... Rxc5 {[%clk
0:00:12.4]} 50. Kxc5 {[%clk 0:00:07.7]} 50... a3 {[%clk 0:00:12.8]} 51. c7
{[%clk 0:00:08.6]} 51... a2 {[%clk 0:00:13.4]} 52. c8=Q {[%clk 0:00:09.3]} 52...
a1=Q {[%clk 0:00:13.7]} 53. Qh3 {[%clk 0:00:09.6]} 53... Qf6 {[%clk 0:00:13.2]}
54. Kd5 {[%clk 0:00:09.7]} 54... Qf5+ {[%clk 0:00:13.2]} 55. Qxf5 {[%clk
0:00:07.8]} 55... gxf5 {[%clk 0:00:14.1]} 56. Ke5 {[%clk 0:00:08.6]} 56... h3
{[%clk 0:00:13.6]} 57. Kf4 {[%clk 0:00:09.5]} 57... h2 {[%clk 0:00:13.9]} 58.
Kg3 {[%clk 0:00:10.4]} 58... h1=Q {[%clk 0:00:14.2]} 59. Kf2 {[%clk 0:00:10.7]}
59... Qh3 {[%clk 0:00:13.8]} 60. Kg1 {[%clk 0:00:10.5]} 60... f4 {[%clk
0:00:14.7]} 61. Kf2 {[%clk 0:00:11.4]} 61... Qg3+ {[%clk 0:00:15]} 62. Kf1
{[%clk 0:00:11.4]} 62... Qh2 {[%clk 0:00:15.2]} 63. Ke1 {[%clk 0:00:11.2]} 63...
f3 {[%clk 0:00:16.1]} 64. Kd1 {[%clk 0:00:11.6]} 64... Qe2+ {[%clk 0:00:16.9]}
65. Kc1 {[%clk 0:00:11.6]} 65... f2 {[%clk 0:00:17.8]} 0-1

[Event "*** Titled Tuesday Blitz"]
[Site "Chess.com"]
[Date "2020.12.01"]
[Round "8"]
[White "Slovak_fighter2000"]
[Black "DenLaz"]
[Result "1/2-1/2"]
[WhiteElo "2571"]
[BlackElo "2799"]
[TimeControl "180+1"]
[EndTime "11:28:00 PST"]
[Termination "Game drawn by repetition"]

1. d4 {[%clk 0:03:00.9]} 1... d5 {[%clk 0:02:59.6]} 2. Nf3 {[%clk 0:03:00.8]}
2... Nf6 {[%clk 0:02:58.8]} 3. c4 {[%clk 0:03:00.4]} 3... e6 {[%clk 0:02:57.4]}
4. Nc3 {[%clk 0:03:00.1]} 4... a6 {[%clk 0:02:57]} 5. cxd5 {[%clk 0:02:59.1]}
5... exd5 {[%clk 0:02:56.3]} 6. Bg5 {[%clk 0:02:58.8]} 6... Be6 {[%clk
0:02:54.7]} 7. e3 {[%clk 0:02:58.9]} 7... Nbd7 {[%clk 0:02:54]} 8. Bd3 {[%clk
0:02:56.6]} 8... h6 {[%clk 0:02:53.9]} 9. Bh4 {[%clk 0:02:56.3]} 9... Bd6 {[%clk
0:02:53.1]} 10. Bg3 {[%clk 0:02:52.2]} 10... Qe7 {[%clk 0:02:45.4]} 11. O-O
{[%clk 0:02:50]} 11... O-O {[%clk 0:02:43.9]} 12. Rc1 {[%clk 0:02:48.6]} 12...
c6 {[%clk 0:02:42.5]} 13. Bxd6 {[%clk 0:02:40.5]} 13... Qxd6 {[%clk 0:02:43.4]}
14. Nd2 {[%clk 0:02:39.1]} 14... Rfe8 {[%clk 0:02:29.4]} 15. Qf3 {[%clk
0:02:33.5]} 15... g6 {[%clk 0:02:19]} 16. Qg3 {[%clk 0:02:32.6]} 16... Qe7
{[%clk 0:02:07.6]} 17. Rce1 {[%clk 0:02:12.4]} 17... Kg7 {[%clk 0:02:01.2]} 18.
h3 {[%clk 0:02:07.6]} 18... Nh5 {[%clk 0:01:40.2]} 19. Qf3 {[%clk 0:02:04.5]}
19... f5 {[%clk 0:01:38.3]} 20. Qd1 {[%clk 0:01:50.1]} 20... Qd6 {[%clk
0:01:31.6]} 21. a3 {[%clk 0:01:43.4]} 21... Nhf6 {[%clk 0:01:30.5]} 22. b4
{[%clk 0:01:36.9]} 22... a5 {[%clk 0:01:22.6]} 23. Qb3 {[%clk 0:01:31.3]} 23...
b5 {[%clk 0:01:21.3]} 24. Ra1 {[%clk 0:01:19]} 24... Nb6 {[%clk 0:01:10]} 25.
Rfc1 {[%clk 0:00:55]} 25... Nc4 {[%clk 0:01:02.3]} 26. Nf3 {[%clk 0:00:53.1]}
26... Ne4 {[%clk 0:00:51.8]} 27. Bxc4 {[%clk 0:00:48.9]} 27... bxc4 {[%clk
0:00:48.1]} 28. Qb2 {[%clk 0:00:46.5]} 28... Reb8 {[%clk 0:00:44.3]} 29. Nxe4
{[%clk 0:00:36.5]} 29... fxe4 {[%clk 0:00:43]} 30. Ne5 {[%clk 0:00:36.7]} 30...
Rb5 {[%clk 0:00:25.1]} 31. Rab1 {[%clk 0:00:30.5]} 31... axb4 {[%clk 0:00:24]}
32. axb4 {[%clk 0:00:29.4]} 32... Ra4 {[%clk 0:00:22.8]} 33. Qd2 {[%clk
0:00:24.4]} 33... Raxb4 {[%clk 0:00:21.6]} 34. Ra1 {[%clk 0:00:22.9]} 34... Rb2
{[%clk 0:00:19.2]} 35. Ra7+ {[%clk 0:00:22.2]} 35... Kf6 {[%clk 0:00:17.6]} 36.
Qd1 {[%clk 0:00:13]} 36... h5 {[%clk 0:00:15.1]} 37. Qf1 {[%clk 0:00:08.7]}
37... Rb7 {[%clk 0:00:11.4]} 38. Rca1 {[%clk 0:00:06.5]} 38... Kg7 {[%clk
0:00:09.9]} 39. f3 {[%clk 0:00:05.2]} 39... Bf5 {[%clk 0:00:09.8]} 40. fxe4
{[%clk 0:00:04.8]} 40... Bxe4 {[%clk 0:00:08.6]} 41. Rxb7+ {[%clk 0:00:02.2]}
41... Rxb7 {[%clk 0:00:08.2]} 42. Ra2 {[%clk 0:00:02.4]} 42... c3 {[%clk
0:00:06.8]} 43. Kh2 {[%clk 0:00:01.9]} 43... c2 {[%clk 0:00:07.1]} 44. Qc1
{[%clk 0:00:01.2]} 44... Qf6 {[%clk 0:00:07.1]} 45. Rxc2 {[%clk 0:00:01.5]}
45... Bxc2 {[%clk 0:00:07.6]} 46. Qxc2 {[%clk 0:00:02.4]} 46... Re7 {[%clk
0:00:08]} 47. Qc5 {[%clk 0:00:01.9]} 47... Rb7 {[%clk 0:00:05.6]} 48. Qc3 {[%clk
0:00:01.9]} 48... Qf5 {[%clk 0:00:05.3]} 49. Qxc6 {[%clk 0:00:01.4]} 49... Re7
{[%clk 0:00:05.4]} 50. Qd6 {[%clk 0:00:01.5]} 50... Qe6 {[%clk 0:00:05.1]} 51.
Qb8 {[%clk 0:00:01]} 51... Qf6 {[%clk 0:00:04.3]} 52. Qb2 {[%clk 0:00:01.7]}
52... Re6 {[%clk 0:00:04.3]} 53. Qe2 {[%clk 0:00:02.3]} 53... Qe7 {[%clk
0:00:04.4]} 54. Qd3 {[%clk 0:00:02.7]} 54... Rf6 {[%clk 0:00:05]} 55. Qe2 {[%clk
0:00:02.7]} 55... Qe6 {[%clk 0:00:05.4]} 56. Qd3 {[%clk 0:00:03.1]} 56... Qf5
{[%clk 0:00:05.6]} 57. Qc3 {[%clk 0:00:03.4]} 57... Qe6 {[%clk 0:00:05.1]} 58.
Qc7+ {[%clk 0:00:03.5]} 58... Kh6 {[%clk 0:00:05.7]} 59. Qd8 {[%clk 0:00:03.8]}
59... Kg7 {[%clk 0:00:05.6]} 60. Qc7+ {[%clk 0:00:03.8]} 60... Kh6 {[%clk
0:00:05.4]} 61. Qc1 {[%clk 0:00:04.7]} 61... Kh7 {[%clk 0:00:03.7]} 62. Qc7+
{[%clk 0:00:04.7]} 62... Kh6 {[%clk 0:00:03.9]} 1/2-1/2

[Event "*** Titled Tuesday Blitz"]
[Site "Chess.com"]
[Date "2020.12.01"]
[Round "8"]
[White "Sergey85Rodchenkov"]
[Black "LuckSlayeer"]
[Result "1/2-1/2"]
[WhiteElo "2455"]
[BlackElo "2584"]
[TimeControl "180+1"]
[EndTime "11:28:00 PST"]
[Termination "Game drawn by repetition"]

1. e4 {[%clk 0:03:00.9]} 1... c5 {[%clk 0:02:59.6]} 2. Nf3 {[%clk 0:03:00.3]}
2... Nc6 {[%clk 0:02:58.3]} 3. d4 {[%clk 0:03:00.1]} 3... cxd4 {[%clk
0:02:59.2]} 4. Nxd4 {[%clk 0:03:00]} 4... e5 {[%clk 0:02:59.9]} 5. Nb3 {[%clk
0:02:59.4]} 5... Nf6 {[%clk 0:02:59.2]} 6. Nc3 {[%clk 0:02:59.8]} 6... Bb4
{[%clk 0:02:59.3]} 7. Bc4 {[%clk 0:02:59.8]} 7... O-O {[%clk 0:02:56.8]} 8. O-O
{[%clk 0:02:59.7]} 8... Bxc3 {[%clk 0:02:54.4]} 9. bxc3 {[%clk 0:03:00.6]} 9...
Nxe4 {[%clk 0:02:54]} 10. Ba3 {[%clk 0:03:00.3]} 10... d6 {[%clk 0:02:36.8]} 11.
Qd3 {[%clk 0:02:59.1]} 11... Bf5 {[%clk 0:02:26.5]} 12. Rae1 {[%clk 0:02:58.2]}
12... Ne7 {[%clk 0:01:55.9]} 13. Rxe4 {[%clk 0:02:42.3]} 13... Bxe4 {[%clk
0:01:56.8]} 14. Qxe4 {[%clk 0:02:41.3]} 14... d5 {[%clk 0:01:57.3]} 15. Bxe7
{[%clk 0:02:39.8]} 15... dxe4 {[%clk 0:01:52.2]} 16. Bxd8 {[%clk 0:02:39.4]}
16... Rfxd8 {[%clk 0:01:51.8]} 17. Re1 {[%clk 0:02:37.6]} 17... Rac8 {[%clk
0:01:49.8]} 18. Rxe4 {[%clk 0:02:27.2]} 18... Rd1+ {[%clk 0:01:49.4]} 19. Bf1
{[%clk 0:02:26.7]} 19... f6 {[%clk 0:01:29.1]} 20. c4 {[%clk 0:02:25.1]} 20...
b6 {[%clk 0:01:12.1]} 21. g3 {[%clk 0:02:17.1]} 21... a5 {[%clk 0:01:06.9]} 22.
a4 {[%clk 0:02:14.5]} 22... Kf7 {[%clk 0:00:56.5]} 23. Kg2 {[%clk 0:02:12.7]}
23... Ke6 {[%clk 0:00:46.7]} 24. Be2 {[%clk 0:02:10.3]} 24... Rd6 {[%clk
0:00:29.6]} 25. Bd3 {[%clk 0:01:46.7]} 25... f5 {[%clk 0:00:25.5]} 26. Re1
{[%clk 0:01:45]} 26... Kf6 {[%clk 0:00:20.6]} 27. f3 {[%clk 0:01:44.3]} 27...
Re8 {[%clk 0:00:14.2]} 28. c5 {[%clk 0:01:40.9]} 28... bxc5 {[%clk 0:00:14.1]}
29. Nxc5 {[%clk 0:01:41.1]} 29... Rc8 {[%clk 0:00:13]} 30. Nb3 {[%clk
0:01:33.5]} 30... Ra8 {[%clk 0:00:06.9]} 31. Nd2 {[%clk 0:01:30.6]} 31... Rd4
{[%clk 0:00:06.4]} 32. Nc4 {[%clk 0:01:29.4]} 32... Re8 {[%clk 0:00:03.5]} 33.
Nxa5 {[%clk 0:01:23.3]} 33... Rxa4 {[%clk 0:00:03.4]} 34. Nb3 {[%clk 0:01:09]}
34... e4 {[%clk 0:00:02.7]} 35. fxe4 {[%clk 0:01:08.1]} 35... fxe4 {[%clk
0:00:03.6]} 36. Bb5 {[%clk 0:01:07.5]} 36... Rea8 {[%clk 0:00:04.2]} 37. Bxa4
{[%clk 0:01:07.3]} 37... Rxa4 {[%clk 0:00:05.1]} 38. Re2 {[%clk 0:01:05.5]}
38... Ke5 {[%clk 0:00:04.5]} 39. Kf2 {[%clk 0:01:04.7]} 39... Rc4 {[%clk
0:00:04.9]} 40. Ke3 {[%clk 0:01:01.9]} 40... Rc3+ {[%clk 0:00:05.2]} 41. Kd2
{[%clk 0:01:01.9]} 41... Rf3 {[%clk 0:00:05.8]} 42. Ke1 {[%clk 0:00:55.8]} 42...
Rc3 {[%clk 0:00:05.5]} 43. Nd2 {[%clk 0:00:52.7]} 43... e3 {[%clk 0:00:05.3]}
44. Nb3 {[%clk 0:00:46.7]} 44... Ke4 {[%clk 0:00:05.1]} 45. Nc1 {[%clk
0:00:40.7]} 45... g5 {[%clk 0:00:04.6]} 46. Kd1 {[%clk 0:00:35.9]} 46... Ra3
{[%clk 0:00:04.7]} 47. Nb3 {[%clk 0:00:32.5]} 47... g4 {[%clk 0:00:03.6]} 48.
Re1 {[%clk 0:00:28.2]} 48... Ra8 {[%clk 0:00:02.8]} 49. Ke2 {[%clk 0:00:26.1]}
49... Rc8 {[%clk 0:00:01.6]} 50. Rc1 {[%clk 0:00:20.7]} 50... Rf8 {[%clk
0:00:02.1]} 51. Nc5+ {[%clk 0:00:19.6]} 51... Kd4 {[%clk 0:00:02.3]} 52. Nd3
{[%clk 0:00:19.9]} 52... Ke4 {[%clk 0:00:02.1]} 53. Nf4 {[%clk 0:00:19.7]} 53...
Rc8 {[%clk 0:00:02.2]} 54. c4 {[%clk 0:00:19.2]} 54... Rd8 {[%clk 0:00:02.6]}
55. Rc2 {[%clk 0:00:19.2]} 55... Rc8 {[%clk 0:00:02.5]} 56. c5 {[%clk
0:00:19.7]} 56... Rc6 {[%clk 0:00:02.6]} 57. Nd3 {[%clk 0:00:18.4]} 57... h5
{[%clk 0:00:02.7]} 58. Nf4 {[%clk 0:00:17.9]} 58... h4 {[%clk 0:00:02]} 59. Nd3
{[%clk 0:00:17.5]} 59... hxg3 {[%clk 0:00:02.4]} 60. hxg3 {[%clk 0:00:17.3]}
60... Rh6 {[%clk 0:00:03.1]} 61. Nf4 {[%clk 0:00:15.7]} 61... Rh2+ {[%clk
0:00:03.3]} 62. Kd1 {[%clk 0:00:16]} 62... Rh1+ {[%clk 0:00:03.4]} 63. Ke2
{[%clk 0:00:16]} 63... Rh2+ {[%clk 0:00:03.8]} 64. Kd1 {[%clk 0:00:11.9]} 64...
Rh1+ {[%clk 0:00:04.1]} 65. Ke2 {[%clk 0:00:11.1]} 65... Rh2+ {[%clk 0:00:04.5]}
1/2-1/2

[Event "*** Titled Tuesday Blitz"]
[Site "Chess.com"]
[Date "2020.12.01"]
[Round "8"]
[White "MarceloPlaya"]
[Black "barriochess"]
[Result "1-0"]
[WhiteElo "2290"]
[BlackElo "2377"]
[TimeControl "180+1"]
[EndTime "11:28:00 PST"]
[Termination "MarceloPlaya won by resignation"]

1. e4 {[%clk 0:02:43.1]} 1... d6 {[%clk 0:02:59.7]} 2. d4 {[%clk 0:02:40.5]}
2... Nf6 {[%clk 0:03:00.1]} 3. Nc3 {[%clk 0:02:39.7]} 3... g6 {[%clk 0:03:00.5]}
4. Be3 {[%clk 0:02:38.1]} 4... c6 {[%clk 0:03:00.1]} 5. Qd2 {[%clk 0:02:37.7]}
5... Nbd7 {[%clk 0:03:00.4]} 6. O-O-O {[%clk 0:02:37.2]} 6... b5 {[%clk
0:03:00.8]} 7. f3 {[%clk 0:02:36.4]} 7... Bb7 {[%clk 0:03:00.4]} 8. Kb1 {[%clk
0:02:34.5]} 8... Qc7 {[%clk 0:02:57.8]} 9. h4 {[%clk 0:02:32.8]} 9... Nb6 {[%clk
0:02:51.9]} 10. g4 {[%clk 0:02:21.5]} 10... h5 {[%clk 0:02:50.9]} 11. g5 {[%clk
0:02:20.8]} 11... Nfd7 {[%clk 0:02:51.3]} 12. Bd3 {[%clk 0:02:13.8]} 12... Bg7
{[%clk 0:02:43.4]} 13. f4 {[%clk 0:02:11.8]} 13... b4 {[%clk 0:02:42.1]} 14.
Nce2 {[%clk 0:02:10.9]} 14... c5 {[%clk 0:02:42.1]} 15. dxc5 {[%clk 0:01:50.7]}
15... Nxc5 {[%clk 0:02:31]} 16. Bb5+ {[%clk 0:01:46.9]} 16... Kf8 {[%clk
0:02:25.9]} 17. Ng3 {[%clk 0:01:24.5]} 17... Nxe4 {[%clk 0:02:19.6]} 18. Nxe4
{[%clk 0:01:24]} 18... Bxe4 {[%clk 0:02:19.5]} 19. Rh2 {[%clk 0:01:24.2]} 19...
Nc4 {[%clk 0:02:12.9]} 20. Bxc4 {[%clk 0:01:21.5]} 20... Qxc4 {[%clk 0:02:13.8]}
21. Bd4 {[%clk 0:01:17.8]} 21... Bxd4 {[%clk 0:01:30.2]} 22. Qxd4 {[%clk
0:01:16.8]} 22... Qxd4 {[%clk 0:01:12.3]} 23. Rxd4 {[%clk 0:01:16.3]} 23... d5
{[%clk 0:01:09.3]} 24. Rxb4 {[%clk 0:01:14.3]} 24... Kg7 {[%clk 0:01:08.9]} 25.
Ne2 {[%clk 0:01:11.9]} 25... e6 {[%clk 0:01:06.2]} 26. Nc3 {[%clk 0:01:04.2]}
26... Bf5 {[%clk 0:01:05.7]} 27. b3 {[%clk 0:00:46.8]} 27... Rhc8 {[%clk
0:01:01.2]} 28. Kb2 {[%clk 0:00:46.2]} 28... Rc5 {[%clk 0:00:55.4]} 29. Nd1
{[%clk 0:00:42.8]} 29... Rac8 {[%clk 0:00:54.1]} 30. Ne3 {[%clk 0:00:42.5]}
30... Be4 {[%clk 0:00:53.5]} 31. c4 {[%clk 0:00:28.8]} 31... dxc4 {[%clk
0:00:49.9]} 32. Nxc4 {[%clk 0:00:28.1]} 32... Bd3 {[%clk 0:00:39.3]} 33. Ne5
{[%clk 0:00:24.5]} 33... Bf5 {[%clk 0:00:24.8]} 34. Rb7 {[%clk 0:00:21]} 34...
R8c7 {[%clk 0:00:20]} 35. Rxc7 {[%clk 0:00:20.5]} 35... Rxc7 {[%clk 0:00:20.9]}
36. b4 {[%clk 0:00:19.7]} 36... Rb7 {[%clk 0:00:18.1]} 37. a3 {[%clk 0:00:18.2]}
37... a5 {[%clk 0:00:18.3]} 38. Kb3 {[%clk 0:00:17.5]} 38... axb4 {[%clk
0:00:18.3]} 39. axb4 {[%clk 0:00:17.4]} 39... Be4 {[%clk 0:00:18.6]} 40. Kc3
{[%clk 0:00:16.3]} 40... Bd5 {[%clk 0:00:19.5]} 41. Rb2 {[%clk 0:00:14.8]} 41...
Rc7+ {[%clk 0:00:20.4]} 42. Kd4 {[%clk 0:00:14.4]} 42... Rc1 {[%clk 0:00:18.2]}
43. b5 {[%clk 0:00:14.1]} 43... Rf1 {[%clk 0:00:18]} 44. Nd3 {[%clk 0:00:12.3]}
44... Rh1 {[%clk 0:00:14.7]} 45. b6 {[%clk 0:00:11.6]} 45... Rxh4 {[%clk
0:00:14.2]} 46. b7 {[%clk 0:00:11.2]} 46... Bxb7 {[%clk 0:00:12.9]} 47. Rxb7
{[%clk 0:00:11]} 47... Rh1 {[%clk 0:00:11.9]} 48. Ne5 {[%clk 0:00:10.6]} 48...
h4 {[%clk 0:00:11.8]} 49. Rxf7+ {[%clk 0:00:09.5]} 49... Kg8 {[%clk 0:00:12.7]}
50. Rf6 {[%clk 0:00:09.1]} 50... h3 {[%clk 0:00:13.1]} 51. Rxg6+ {[%clk
0:00:08.5]} 51... Kf8 {[%clk 0:00:14]} 52. Rh6 {[%clk 0:00:08.5]} 52... h2
{[%clk 0:00:13.8]} 53. Nd3 {[%clk 0:00:08.2]} 53... Kg7 {[%clk 0:00:13.1]} 54.
Ke3 {[%clk 0:00:07.6]} 54... e5 {[%clk 0:00:10.3]} 55. fxe5 {[%clk 0:00:06.9]}
55... Kf7 {[%clk 0:00:10.2]} 56. Nf2 {[%clk 0:00:06.6]} 56... Re1+ {[%clk
0:00:08]} 57. Kf3 {[%clk 0:00:06.6]} 57... Rxe5 {[%clk 0:00:07.3]} 58. Ne4
{[%clk 0:00:06.4]} 58... Rf5+ {[%clk 0:00:05.4]} 59. Kg2 {[%clk 0:00:05.6]}
59... Rf4 {[%clk 0:00:05.5]} 60. Rf6+ {[%clk 0:00:05.1]} 60... Rxf6 {[%clk
0:00:04.8]} 61. gxf6 {[%clk 0:00:05.4]} 61... h1=Q+ {[%clk 0:00:04.6]} 62. Kxh1
{[%clk 0:00:05.4]} 62... Ke6 {[%clk 0:00:05.1]} 63. Kg2 {[%clk 0:00:05.7]} 1-0